[Event "16th Deltalift Open 2019"]
[Site "Halmstad"]
[Date "2019.05.30"]
[Round "3.9"]
[White "Seo, Jung Min"]
[Black "Mejvik, Jacob"]
[Result "1-0"]
[ECO "C88"]
[WhiteElo "2377"]
[BlackElo "2057"]
[Annotator "ChessBase"]
[PlyCount "61"]
[EventDate "2019.05.30"]
[EventType "swiss"]
[EventCountry "SWE"]
[SourceTitle "playchess.com"]
[Source "ChessBase"]
[SourceQuality "1"]
[TimeControl "1800+12"]

1. e4 {[%emt 0:00:00]} e5 {[%emt 0:00:00]} 2. Nf3 {[%emt 0:00:00]} Nc6 {[%emt 0:00:02]} 3. Bb5 {[%emt 0:00:00]} a6 {[%emt 0:00:26]} 4. Ba4 {[%emt 0:00:00]} Nf6 {[%emt 0:00:10]} 5. O-O {[%emt 0:00:31]} Be7 {[%emt 0:00:06]} 6. Re1 {[%emt 0:00:08]} b5 {[%emt 0:00:12]} 7. Bb3 {[%emt 0:00:46]} O-O {[%emt 0:00:10]} 8. a4 {[%emt 0:00:25]} b4 {[%emt 0:00:08]} 9. d3 {[%emt 0:00:24]} Bc5 {[%emt 0:00:40]} 10. Bg5 {[%emt 0:00:24]} d6 {[%emt 0:00:12]} 11. Nbd2 {[%emt 0:00:30]} Re8 {[%emt 0:01:56]} 12. Nf1 {[%emt 0:00:26]} Be6 {[%emt 0:00:05]} 13. Bxe6 {[%emt 0:00:07]} Rxe6 {[%emt 0:00:06]} 14. Ne3 {[%emt 0:00:44]} Bxe3 {[%emt 0:06:21]} 15. Rxe3 {[%emt 0:00:46]} Qb8 {[%emt 0:03:12]} 16. Nh4 {[%emt 0:02:57]} g6 {[%emt 0:04:53]} 17. Nf5 {[%emt 0:02:24]} Ne8 {[%emt 0:01:58]} 18. Rg3 {[%emt 0:01:26]} f6 {[%emt 0:04:06]} 19. Bd2 {[%emt 0:00:26]} Kh8 {[%emt 0:03:14]} 20. Qg4 {[%emt 0:00:24]} Nd8 {[%emt 0:00:52]} 21. h4 {[%emt 0:00:25]} Ng7 {[%emt 0:00:59]} 22. Nxg7 {[%emt 0:00:28]} Kxg7 {[%emt 0:00:02]} 23. h5 {[%emt 0:00:01]} Kf8 {[%emt 0:02:35]} 24. hxg6 {[%emt 0:00:08]} hxg6 {[%emt 0:00:02]} 25. Qxg6 {[%emt 0:00:31]} Nf7 {[%emt 0:00:41]} 26. Bh6+ {[%emt 0:01:28]} Ke7 {[%emt 0:00:03]} 27. Bg7 {[%emt 0:00:06]} Nh8 {[%emt 0:00:45]} 28. Qh7 {[%emt 0:01:38]} Nf7 {[%emt 0:00:03]} 29. Qf5 {[%emt 0:00:05]} Qb6 {[%emt 0:01:19]} 30. Rg6 {[%emt 0:00:18]} Nh8 {[%emt 0:00:24]} 31. Rxf6 {[%emt 0:00:07]} 1-0

[Event "16th Deltalift Open 2019"]
[Site "Halmstad"]
[Date "2019.05.30"]
[Round "3.10"]
[White "Harren, Mats"]
[Black "Rydstrom, Tom"]
[Result "0-1"]
[ECO "C77"]
[WhiteElo "2139"]
[BlackElo "2365"]
[Annotator "ChessBase"]
[PlyCount "52"]
[EventDate "2019.05.30"]
[EventType "swiss"]
[EventCountry "SWE"]
[SourceTitle "playchess.com"]
[Source "ChessBase"]
[SourceQuality "1"]
[TimeControl "1800+12"]

1. e4 {[%emt 0:00:00]} e5 {[%emt 0:00:41]} 2. Nf3 {[%emt 0:00:00]} Nc6 {[%emt 0:00:02]} 3. Bb5 {[%emt 0:00:00]} a6 {[%emt 0:00:16]} 4. Ba4 {[%emt 0:00:01]} Nf6 {[%emt 0:00:14]} 5. d3 {[%emt 0:00:04]} b5 {[%emt 0:00:14]} 6. Bb3 {[%emt 0:00:02]} Bc5 {[%emt 0:00:18]} 7. Nc3 {[%emt 0:00:06]} h6 {[%emt 0:00:16]} 8. Nd5 {[%emt 0:00:04]} O-O {[%emt 0:00:36]} 9. Nxf6+ {[%emt 0:01:21]} Qxf6 {[%emt 0:00:07]} 10. Bd5 {[%emt 0:03:21]} Re8 {[%emt 0:01:41]} 11. c3 {[%emt 0:01:27]} Rb8 {[%emt 0:00:13]} 12. g4 {[%emt 0:02:02]} Ne7 {[%emt 0:02:07]} 13. g5 {[%emt 0:01:08]} Qb6 {[%emt 0:01:19]} 14. Bxf7+ {[%emt 0:01:16]} Kxf7 {[%emt 0:00:01]} 15. Nxe5+ {[%emt 0:00:05]} Kg8 {[%emt 0:01:21]} 16. d4 {[%emt 0:00:27]} Qe6 {[%emt 0:07:08]} 17. gxh6 {[%emt 0:04:27]} Ng6 {[%emt 0:06:16]} 18. Rg1 {[%emt 0:02:12]} Nxe5 {[%emt 0:00:28]} 19. Rxg7+ {[%emt 0:00:46]} Kh8 {[%emt 0:00:19]} 20. dxc5 {[%emt 0:01:08]} Bb7 {[%emt 0:03:39]} 21. f3 {[%emt 0:01:43]} Qh3 {[%emt 0:00:39]} 22. Kf2 {[%emt 0:00:41]} Rf8 {[%emt 0:00:28]} 23. Rg3 {[%emt 0:00:30]} Qxh2+ {[%emt 0:00:03]} 24. Rg2 {[%emt 0:00:22]} Ng4+ {[%emt 0:01:12]} 25. Kf1 {[%emt 0:00:24]} Qh1+ {[%emt 0:00:01]} 26. Rg1 {[%emt 0:00:09]} Rxf3+ 0-1

[Event "16th Deltalift Open 2019"]
[Site "Halmstad"]
[Date "2019.05.30"]
[Round "3.11"]
[White "Malmstig, Erik"]
[Black "Nilsson, Patrik"]
[Result "1-0"]
[ECO "E70"]
[WhiteElo "2352"]
[BlackElo "2221"]
[Annotator "ChessBase"]
[PlyCount "103"]
[EventDate "2019.05.30"]
[EventType "swiss"]
[EventCountry "SWE"]
[SourceTitle "playchess.com"]
[Source "ChessBase"]
[SourceQuality "1"]
[TimeControl "1800+12"]

1. c4 {[%emt 0:00:00]} g6 {[%emt 0:00:00]} 2. d4 {[%emt 0:00:00]} Nf6 {[%emt 0:00:00]} 3. Nc3 {[%emt 0:00:05]} Bg7 {[%emt 0:00:00]} 4. e4 {[%emt 0:00:07]} d6 {[%emt 0:00:03]} 5. Nge2 {[%emt 0:00:10]} O-O {[%emt 0:00:32]} 6. Ng3 {[%emt 0:00:08]} e5 {[%emt 0:01:00]} 7. d5 {[%emt 0:00:07]} a5 {[%emt 0:00:27]} 8. Be2 {[%emt 0:00:07]} Na6 {[%emt 0:00:22]} 9. h4 {[%emt 0:00:23]} h5 {[%emt 0:01:03]} 10. Bg5 {[%emt 0:00:19]} Qe8 {[%emt 0:01:45]} 11. Qd2 {[%emt 0:00:09]} Nh7 {[%emt 0:02:50]} 12. Bh6 {[%emt 0:01:02]} Bd7 {[%emt 0:01:56]} 13. Bxh5 {[%emt 0:00:44]} f5 {[%emt 0:03:33]} 14. Bxg7 {[%emt 0:01:16]} Kxg7 {[%emt 0:00:21]} 15. Be2 {[%emt 0:03:22]} f4 {[%emt 0:01:01]} 16. Nf1 {[%emt 0:03:43]} Nc5 {[%emt 0:00:23]} 17. Qc2 {[%emt 0:03:14]} c6 {[%emt 0:00:48]} 18. Nd2 {[%emt 0:00:43]} a4 {[%emt 0:01:12]} 19. g3 {[%emt 0:03:43]} fxg3 {[%emt 0:03:20]} 20. fxg3 {[%emt 0:00:07]} Nf6 {[%emt 0:00:34]} 21. Nf3 {[%emt 0:05:42]} cxd5 {[%emt 0:00:47]} 22. cxd5 {[%emt 0:00:16]} b5 {[%emt 0:00:14]} 23. a3 {[%emt 0:00:19]} Rc8 {[%emt 0:00:25]} 24. Ng5 {[%emt 0:02:53]} Nb3 {[%emt 0:00:16]} 25. Rd1 {[%emt 0:00:50]} Nd4 {[%emt 0:00:15]} 26. Qd3 {[%emt 0:00:23]} Ng4 {[%emt 0:00:33]} 27. Rf1 {[%emt 0:00:39]} Rxf1+ {[%emt 0:01:20]} 28. Bxf1 {[%emt 0:00:04]} Qe7 {[%emt 0:01:07]} 29. Rd2 {[%emt 0:00:19]} Rf8 {[%emt 0:00:37]} 30. Bg2 {[%emt 0:00:24]} Qf6 {[%emt 0:00:51]} 31. Nd1 {[%emt 0:00:53]} b4 {[%emt 0:00:22]} 32. Qa6 {[%emt 0:00:21]} b3 {[%emt 0:01:09]} 33. Qa7 {[%emt 0:00:57]} Rd8 {[%emt 0:02:34]} 34. Rxd4 {[%emt 0:00:19]} exd4 {[%emt 0:00:02]} 35. Ne6+ {[%emt 0:00:07]} Kh6 {[%emt 0:00:31]} 36. Nxd8 {[%emt 0:00:09]} Qxd8 {[%emt 0:00:10]} 37. Qxd4 {[%emt 0:00:09]} Ne5 {[%emt 0:00:06]} 38. Qe3+ {[%emt 0:00:57]} Kh7 {[%emt 0:00:12]} 39. Nc3 {[%emt 0:00:03]} Qa5 {[%emt 0:00:23]} 40. Bf1 {[%emt 0:00:14]} Bg4 {[%emt 0:00:13]} 41. Kd2 {[%emt 0:00:23]} Nf3+ {[%emt 0:00:16]} 42. Kc1 {[%emt 0:00:05]} Qc7 {[%emt 0:00:19]} 43. Bb5 {[%emt 0:00:42]} Ne5 {[%emt 0:00:12]} 44. Bxa4 {[%emt 0:00:18]} Qf7 {[%emt 0:00:24]} 45. Bb5 {[%emt 0:00:08]} Qf6 {[%emt 0:00:15]} 46. a4 {[%emt 0:00:22]} Nf3 {[%emt 0:00:10]} 47. a5 {[%emt 0:00:15]} Nd4 {[%emt 0:00:20]} 48. Bd3 {[%emt 0:00:07]} Bc8 {[%emt 0:01:01]} 49. a6 {[%emt 0:00:07]} Nc2 {[%emt 0:00:06]} 50. Bxc2 {[%emt 0:00:14]} bxc2 {[%emt 0:00:07]} 51. Kxc2 {[%emt 0:00:10]} Bxa6 {[%emt 0:00:03]} 52. Qa7+ {[%emt 0:00:02]} 1-0

[Event "16th Deltalift Open 2019"]
[Site "Halmstad"]
[Date "2019.05.30"]
[Round "3.12"]
[White "Svensson, Leif"]
[Black "Bellon Lopez, Juan Manuel"]
[Result "0-1"]
[ECO "D01"]
[WhiteElo "2016"]
[BlackElo "2345"]
[Annotator "ChessBase"]
[PlyCount "84"]
[EventDate "2019.05.30"]
[EventType "swiss"]
[EventCountry "SWE"]
[SourceTitle "playchess.com"]
[Source "ChessBase"]
[SourceQuality "1"]
[TimeControl "1800+12"]

1. d4 {[%emt 0:00:00]} Nf6 {[%emt 0:00:00]} 2. Nc3 {[%emt 0:00:02]} d5 {[%emt 0:00:14]} 3. Bg5 {[%emt 0:00:08]} c6 {[%emt 0:00:14]} 4. e3 {[%emt 0:00:22]} Nbd7 {[%emt 0:01:00]} 5. f4 {[%emt 0:00:24]} e6 {[%emt 0:00:24]} 6. Nf3 {[%emt 0:01:03]} Qa5 {[%emt 0:00:15]} 7. a3 {[%emt 0:00:52]} Ne4 {[%emt 0:00:57]} 8. Bd3 {[%emt 0:03:58]} Nxc3 {[%emt 0:04:56]} 9. Qd2 {[%emt 0:00:11]} c5 {[%emt 0:00:18]} 10. Qxc3 {[%emt 0:01:58]} Qxc3+ {[%emt 0:00:11]} 11. bxc3 {[%emt 0:00:05]} c4 {[%emt 0:00:45]} 12. Be2 {[%emt 0:00:09]} Bd6 {[%emt 0:01:52]} 13. g4 {[%emt 0:05:28]} f6 {[%emt 0:03:16]} 14. Bh4 {[%emt 0:00:07]} O-O {[%emt 0:01:41]} 15. g5 {[%emt 0:05:24]} fxg5 {[%emt 0:03:33]} 16. Bxg5 {[%emt 0:03:11]} Nf6 {[%emt 0:01:35]} 17. Bxf6 {[%emt 0:00:24]} gxf6 {[%emt 0:00:46]} 18. a4 {[%emt 0:04:36]} Rf7 {[%emt 0:02:35]} 19. Rg1+ {[%emt 0:00:43]} Rg7 {[%emt 0:00:48]} 20. Kf2 {[%emt 0:00:45]} Bd7 {[%emt 0:00:31]} 21. Rxg7+ {[%emt 0:01:13]} Kxg7 {[%emt 0:00:01]} 22. a5 {[%emt 0:00:27]} a6 {[%emt 0:03:00]} 23. Nd2 {[%emt 0:01:45]} Bc7 {[%emt 0:01:11]} 24. Bf3 {[%emt 0:00:06]} Kf7 {[%emt 0:00:39]} 25. Bh5+ {[%emt 0:00:09]} Ke7 {[%emt 0:00:10]} 26. Rg1 {[%emt 0:00:21]} Bxa5 {[%emt 0:00:38]} 27. Rg7+ {[%emt 0:00:04]} Kd6 {[%emt 0:00:03]} 28. Nb1 {[%emt 0:00:05]} Rh8 {[%emt 0:00:25]} 29. Bf7 {[%emt 0:00:05]} Bd8 {[%emt 0:00:45]} 30. Bg8 {[%emt 0:00:07]} Be7 {[%emt 0:00:29]} 31. f5 {[%emt 0:00:16]} Bf8 {[%emt 0:00:33]} 32. Rg1 {[%emt 0:01:17]} exf5 {[%emt 0:00:03]} 33. h4 {[%emt 0:00:20]} b5 {[%emt 0:00:08]} 34. Bf7 {[%emt 0:00:15]} Be6 {[%emt 0:00:09]} 35. Bxe6 {[%emt 0:00:19]} Kxe6 {[%emt 0:00:00]} 36. Nd2 {[%emt 0:00:05]} Bd6 {[%emt 0:00:14]} 37. Rg7 {[%emt 0:00:01]} Be7 {[%emt 0:00:07]} 38. Ke2 {[%emt 0:00:08]} a5 {[%emt 0:00:03]} 39. Kd1 {[%emt 0:00:01]} b4 {[%emt 0:00:07]} 40. Kc1 {[%emt 0:00:06]} bxc3 {[%emt 0:00:16]} 41. Nb1 {[%emt 0:00:00]} Bb4 {[%emt 0:00:03]} 42. Ra7 {[%emt 0:00:07]} Rg8 {[%emt 0:00:07]} 0-1

[Event "16th Deltalift Open 2019"]
[Site "Halmstad"]
[Date "2019.05.30"]
[Round "3.13"]
[White "Ziegler, Nathalie"]
[Black "Lindgren, Fredrik"]
[Result "1-0"]
[ECO "A10"]
[WhiteElo "1789"]
[BlackElo "2278"]
[Annotator "ChessBase"]
[PlyCount "49"]
[EventDate "2019.05.30"]
[EventType "swiss"]
[EventCountry "SWE"]
[SourceTitle "playchess.com"]
[Source "ChessBase"]
[SourceQuality "1"]
[TimeControl "1800+12"]

1. c4 {[%emt 0:00:00]} d6 {[%emt 0:00:13]} 2. d4 {[%emt 0:00:00]} Nc6 {[%emt 0:00:05]} 3. Nc3 {[%emt 0:00:02]} g6 {[%emt 0:00:05]} 4. Nf3 {[%emt 0:00:07]} Bg7 {[%emt 0:00:02]} 5. e4 {[%emt 0:00:27]} e5 {[%emt 0:00:05]} 6. dxe5 {[%emt 0:00:27]} Nxe5 {[%emt 0:00:05]} 7. Be2 {[%emt 0:00:25]} Ne7 {[%emt 0:00:08]} 8. O-O {[%emt 0:00:16]} O-O {[%emt 0:00:03]} 9. Bg5 {[%emt 0:00:59]} Be6 {[%emt 0:00:27]} 10. Nxe5 {[%emt 0:01:38]} Bxe5 {[%emt 0:00:20]} 11. f4 {[%emt 0:00:11]} Bxc3 {[%emt 0:00:48]} 12. bxc3 {[%emt 0:00:02]} f6 {[%emt 0:00:08]} 13. Bh6 {[%emt 0:01:59]} Rf7 {[%emt 0:00:04]} 14. f5 {[%emt 0:00:32]} gxf5 {[%emt 0:01:22]} 15. Bh5 {[%emt 0:00:08]} fxe4 {[%emt 0:00:04]} 16. Bxf7+ {[%emt 0:04:05]} Bxf7 {[%emt 0:00:20]} 17. Rxf6 {[%emt 0:00:47]} Ng6 {[%emt 0:00:16]} 18. Rxf7 {[%emt 0:05:56]} Kxf7 {[%emt 0:00:03]} 19. Qd5+ {[%emt 0:00:02]} Ke8 {[%emt 0:00:02]} 20. Bg5 {[%emt 0:04:04]} Qc8 {[%emt 0:02:47]} 21. Rf1 {[%emt 0:02:02]} Ne5 {[%emt 0:01:21]} 22. Qg8+ {[%emt 0:00:52]} Kd7 {[%emt 0:00:14]} 23. Qxh7+ {[%emt 0:00:02]} Kc6 {[%emt 0:00:46]} 24. Qxe4+ {[%emt 0:00:04]} Kb6 {[%emt 0:00:01]} 25. c5+ {[%emt 0:01:47]} 1-0

[Event "16th Deltalift Open 2019"]
[Site "Halmstad"]
[Date "2019.05.30"]
[Round "3.14"]
[White "Ziegler, Ari"]
[Black "Falkevall, Axel"]
[Result "1-0"]
[ECO "C11"]
[WhiteElo "2300"]
[BlackElo "1960"]
[Annotator "ChessBase"]
[PlyCount "51"]
[EventDate "2019.05.30"]
[EventType "swiss"]
[EventCountry "SWE"]
[SourceTitle "playchess.com"]
[Source "ChessBase"]
[SourceQuality "1"]
[TimeControl "1800+12"]

1. e4 {[%emt 0:00:00]} e6 {[%emt 0:00:00]} 2. d4 {[%emt 0:00:00]} d5 {[%emt 0:00:00]} 3. Nc3 {[%emt 0:00:00]} Nf6 {[%emt 0:00:00]} 4. e5 {[%emt 0:00:00]} Nfd7 {[%emt 0:00:02]} 5. f4 {[%emt 0:00:00]} c5 {[%emt 0:00:04]} 6. Nf3 {[%emt 0:00:00]} Nc6 {[%emt 0:00:09]} 7. Be3 {[%emt 0:00:01]} Be7 {[%emt 0:00:22]} 8. Qd2 {[%emt 0:00:20]} a6 {[%emt 0:00:19]} 9. Be2 {[%emt 0:03:07]} b5 {[%emt 0:01:24]} 10. O-O {[%emt 0:00:13]} Bb7 {[%emt 0:00:57]} 11. a3 {[%emt 0:02:05]} Qc7 {[%emt 0:02:26]} 12. Kh1 {[%emt 0:00:09]} O-O {[%emt 0:00:31]} 13. Rad1 {[%emt 0:00:47]} Rfc8 {[%emt 0:00:39]} 14. dxc5 {[%emt 0:02:56]} Nxc5 {[%emt 0:01:20]} 15. Bxc5 {[%emt 0:03:47]} Bxc5 {[%emt 0:00:06]} 16. Bd3 {[%emt 0:00:03]} Be7 {[%emt 0:01:38]} 17. f5 {[%emt 0:01:32]} Nxe5 {[%emt 0:03:44]} 18. Nxe5 {[%emt 0:00:05]} Qxe5 {[%emt 0:00:03]} 19. Rde1 {[%emt 0:00:05]} Qd6 {[%emt 0:00:20]} 20. f6 {[%emt 0:03:23]} Bxf6 {[%emt 0:03:52]} 21. Rxf6 {[%emt 0:01:25]} gxf6 {[%emt 0:01:30]} 22. Qh6 {[%emt 0:00:33]} Rc7 {[%emt 0:03:46]} 23. Bxh7+ {[%emt 0:00:05]} Kh8 {[%emt 0:00:02]} 24. Qxf6+ {[%emt 0:00:50]} Kxh7 {[%emt 0:00:12]} 25. Re3 {[%emt 0:00:02]} Kg8 {[%emt 0:01:45]} 26. Rh3 {[%emt 0:00:06]} 1-0

[Event "16th Deltalift Open 2019"]
[Site "Halmstad"]
[Date "2019.05.30"]
[Round "3.15"]
[White "Bernhardsson, Sten"]
[Black "Kucuksari, Kaan"]
[Result "0-1"]
[ECO "A46"]
[WhiteElo "1992"]
[BlackElo "2320"]
[Annotator "ChessBase"]
[PlyCount "30"]
[EventDate "2019.05.30"]
[EventType "swiss"]
[EventCountry "SWE"]
[SourceTitle "playchess.com"]
[Source "ChessBase"]
[SourceQuality "1"]
[TimeControl "1800+12"]

1. d4 {[%emt 0:00:00]} Nf6 {[%emt 0:00:00]} 2. Nf3 {[%emt 0:00:00]} e6 {[%emt 0:00:00]} 3. Bg5 {[%emt 0:00:00]} h6 {[%emt 0:00:00]} 4. Bh4 {[%emt 0:00:03]} b6 {[%emt 0:00:01]} 5. e3 {[%emt 0:00:15]} Bb7 {[%emt 0:00:02]} 6. Be2 {[%emt 0:00:18]} d6 {[%emt 0:00:23]} 7. O-O {[%emt 0:00:21]} g5 {[%emt 0:00:04]} 8. Bg3 {[%emt 0:00:05]} Ne4 {[%emt 0:00:08]} 9. Nbd2 {[%emt 0:01:02]} Nxg3 {[%emt 0:01:06]} 10. hxg3 {[%emt 0:00:13]} Bg7 {[%emt 0:00:05]} 11. c3 {[%emt 0:01:33]} g4 {[%emt 0:00:47]} 12. Ne1 {[%emt 0:01:09]} h5 {[%emt 0:00:05]} 13. e4 {[%emt 0:03:25]} Bh6 {[%emt 0:01:15]} 14. e5 {[%emt 0:01:58]} dxe5 {[%emt 0:00:17]} 15. dxe5 {[%emt 0:00:02]} Qxd2 {[%emt 0:00:09]} 0-1

[Event "16th Deltalift Open 2019"]
[Site "Halmstad"]
[Date "2019.05.30"]
[Round "3.16"]
[White "Holst, Conny"]
[Black "Silfverstroem, Niklas"]
[Result "1-0"]
[ECO "E73"]
[WhiteElo "2197"]
[BlackElo "2019"]
[Annotator "ChessBase"]
[PlyCount "39"]
[EventDate "2019.05.30"]
[EventType "swiss"]
[EventCountry "SWE"]
[SourceTitle "playchess.com"]
[Source "ChessBase"]
[SourceQuality "1"]
[TimeControl "1800+12"]

1. d4 {[%emt 0:00:00]} Nf6 {[%emt 0:00:00]} 2. c4 {[%emt 0:00:00]} g6 {[%emt 0:00:00]} 3. Nc3 {[%emt 0:00:04]} d6 {[%emt 0:00:00]} 4. e4 {[%emt 0:00:09]} Bg7 {[%emt 0:00:00]} 5. Be2 {[%emt 0:00:11]} O-O {[%emt 0:00:00]} 6. Bg5 {[%emt 0:00:06]} h6 {[%emt 0:00:09]} 7. Be3 {[%emt 0:00:08]} e5 {[%emt 0:00:03]} 8. d5 {[%emt 0:00:35]} Nbd7 {[%emt 0:00:28]} 9. Qd2 Kh7 {[%emt 0:00:05]} 10. f3 {[%emt 0:05:39]} Nh5 {[%emt 0:01:02]} 11. g3 {[%emt 0:04:11]} f5 {[%emt 0:01:03]} 12. exf5 {[%emt 0:00:45]} gxf5 {[%emt 0:00:10]} 13. O-O-O {[%emt 0:01:07]} Ndf6 {[%emt 0:01:41]} 14. Bd3 {[%emt 0:01:55]} Kh8 {[%emt 0:00:29]} 15. Bxh6 {[%emt 0:00:17]} f4 {[%emt 0:00:44]} 16. Bxg7+ {[%emt 0:00:18]} Kxg7 {[%emt 0:00:32]} 17. g4 {[%emt 0:00:38]} Nxg4 {[%emt 0:00:24]} 18. fxg4 {[%emt 0:00:57]} Bxg4 {[%emt 0:00:01]} 19. Qg2 {[%emt 0:01:14]} Qg5 {[%emt 0:00:02]} 20. Nf3 {[%emt 0:00:20]} 1-0

[Event "16th Deltalift Open 2019"]
[Site "Halmstad"]
[Date "2019.05.30"]
[Round "3.17"]
[White "Trost, Edvin"]
[Black "Wahlstrom, Lennart"]
[Result "1/2-1/2"]
[ECO "C89"]
[WhiteElo "2047"]
[BlackElo "2196"]
[Annotator "ChessBase"]
[PlyCount "101"]
[EventDate "2019.05.30"]
[EventType "swiss"]
[EventCountry "SWE"]
[SourceTitle "playchess.com"]
[Source "ChessBase"]
[SourceQuality "1"]
[TimeControl "1800+12"]

1. e4 {[%emt 0:00:00]} e5 {[%emt 0:00:00]} 2. Nf3 {[%emt 0:00:00]} Nc6 {[%emt 0:00:00]} 3. Bb5 {[%emt 0:00:00]} a6 {[%emt 0:00:00]} 4. Ba4 {[%emt 0:00:00]} Nf6 {[%emt 0:00:02]} 5. O-O {[%emt 0:00:00]} Be7 {[%emt 0:00:03]} 6. Re1 {[%emt 0:00:00]} b5 {[%emt 0:00:04]} 7. Bb3 {[%emt 0:00:00]} O-O {[%emt 0:00:03]} 8. c3 {[%emt 0:00:00]} d5 {[%emt 0:00:02]} 9. d4 {[%emt 0:00:01]} dxe4 {[%emt 0:01:10]} 10. Nxe5 {[%emt 0:01:25]} Bb7 {[%emt 0:00:15]} 11. Nd2 {[%emt 0:00:09]} Bd6 {[%emt 0:05:08]} 12. Ng4 {[%emt 0:01:54]} Nxg4 {[%emt 0:05:53]} 13. Qxg4 {[%emt 0:00:53]} Kh8 {[%emt 0:00:34]} 14. Qxe4 {[%emt 0:01:39]} Na5 {[%emt 0:00:08]} 15. Qg4 {[%emt 0:04:30]} f5 {[%emt 0:02:08]} 16. Qh3 {[%emt 0:00:17]} Re8 {[%emt 0:02:10]} 17. Rf1 {[%emt 0:03:48]} Nxb3 {[%emt 0:00:43]} 18. axb3 {[%emt 0:02:01]} Qf6 {[%emt 0:02:23]} 19. Nf3 {[%emt 0:01:38]} f4 {[%emt 0:02:47]} 20. b4 {[%emt 0:01:17]} Re2 {[%emt 0:03:54]} 21. Rd1 {[%emt 0:05:47]} Rae8 {[%emt 0:02:34]} 22. Bd2 {[%emt 0:00:09]} Qg6 {[%emt 0:01:18]} 23. Rac1 {[%emt 0:03:10]} Be4 {[%emt 0:02:11]} 24. Ne1 {[%emt 0:05:53]} Bf5 {[%emt 0:00:28]} 25. Qh4 {[%emt 0:00:07]} Bg4 {[%emt 0:00:10]} 26. h3 {[%emt 0:00:17]} Bh5 {[%emt 0:00:15]} 27. Bxf4 {[%emt 0:00:14]} R2e4 {[%emt 0:00:16]} 28. g4 {[%emt 0:00:14]} Bxf4 {[%emt 0:00:19]} 29. Ra1 {[%emt 0:00:01]} Bxg4 {[%emt 0:00:14]} 30. hxg4 {[%emt 0:00:02]} Bd2 {[%emt 0:00:06]} 31. f3 {[%emt 0:00:25]} Re2 {[%emt 0:00:13]} 32. Ng2 {[%emt 0:00:17]} Bg5 {[%emt 0:00:14]} 33. Qh5 {[%emt 0:00:08]} Qxh5 {[%emt 0:00:14]} 34. gxh5 {[%emt 0:00:01]} Be3+ {[%emt 0:00:02]} 35. Nxe3 {[%emt 0:00:23]} R8xe3 {[%emt 0:00:02]} 36. Rf1 {[%emt 0:00:17]} Rxb2 {[%emt 0:00:05]} 37. Rae1 {[%emt 0:00:01]} Ree2 {[%emt 0:00:04]} 38. Rxe2 {[%emt 0:00:02]} Rxe2 {[%emt 0:00:02]} 39. Ra1 {[%emt 0:00:03]} Re6 {[%emt 0:00:05]} 40. Kf2 {[%emt 0:00:18]} Kg8 {[%emt 0:00:01]} 41. Kg3 {[%emt 0:00:26]} Kf7 {[%emt 0:00:04]} 42. Kf4 {[%emt 0:00:01]} Kf6 {[%emt 0:00:03]} 43. Ra2 {[%emt 0:00:13]} Rc6 {[%emt 0:00:03]} 44. Ra3 {[%emt 0:00:15]} Ke6 {[%emt 0:00:04]} 45. Ke4 {[%emt 0:00:01]} Kf6 {[%emt 0:00:06]} 46. Kf4 {[%emt 0:00:03]} Re6 {[%emt 0:00:21]} 47. Ra1 {[%emt 0:00:04]} g5+ {[%emt 0:00:05]} 48. hxg6 {[%emt 0:00:01]} hxg6 {[%emt 0:00:02]} 49. d5 {[%emt 0:00:15]} g5+ {[%emt 0:00:09]} 50. Kg4 {[%emt 0:00:09]} Rd6 {[%emt 0:00:01]} 51. f4 {Ke5} 1/2-1/2

[Event "16th Deltalift Open 2019"]
[Site "Halmstad"]
[Date "2019.05.30"]
[Round "3.18"]
[White "Cramling Bellon, Anna"]
[Black "Brzezinski, Adam"]
[Result "1-0"]
[ECO "A56"]
[WhiteElo "1990"]
[BlackElo "2193"]
[Annotator "ChessBase"]
[PlyCount "108"]
[EventDate "2019.05.30"]
[EventType "swiss"]
[EventCountry "SWE"]
[SourceTitle "playchess.com"]
[Source "ChessBase"]
[SourceQuality "1"]
[TimeControl "1800+12"]

1. d4 {[%emt 0:00:00]} Nf6 {[%emt 0:00:00]} 2. c4 {[%emt 0:00:00]} c5 {[%emt 0:00:04]} 3. d5 {[%emt 0:00:00]} e5 {[%emt 0:00:02]} 4. Nc3 {[%emt 0:02:03]} d6 {[%emt 0:00:03]} 5. e4 {[%emt 0:00:38]} Be7 {[%emt 0:00:02]} 6. g3 {[%emt 0:00:05]} Nbd7 {[%emt 0:02:22]} 7. Bg2 {[%emt 0:00:24]} O-O {[%emt 0:00:05]} 8. Nge2 {[%emt 0:00:02]} Ne8 {[%emt 0:00:37]} 9. O-O {[%emt 0:00:12]} Nc7 {[%emt 0:00:04]} 10. Be3 {[%emt 0:00:49]} a6 {[%emt 0:00:10]} 11. a4 {[%emt 0:00:10]} Rb8 {[%emt 0:00:13]} 12. Qd3 {[%emt 0:02:29]} Bf6 {[%emt 0:03:27]} 13. f4 {[%emt 0:04:58]} g6 {[%emt 0:01:00]} 14. f5 {[%emt 0:05:02]} Bg5 {[%emt 0:01:23]} 15. g4 {[%emt 0:06:18]} b5 {[%emt 0:04:54]} 16. axb5 {[%emt 0:02:24]} axb5 {[%emt 0:00:02]} 17. cxb5 {[%emt 0:00:54]} Bxe3+ {[%emt 0:02:00]} 18. Qxe3 {[%emt 0:00:01]} g5 {[%emt 0:03:23]} 19. f6 {[%emt 0:04:39]} h6 {[%emt 0:00:05]} 20. Qh3 {[%emt 0:02:04]} Nxf6 {[%emt 0:01:30]} 21. Qxh6 {[%emt 0:00:33]} Nxg4 {[%emt 0:00:12]} 22. Qh5 {[%emt 0:00:04]} Ne8 {[%emt 0:02:25]} 23. Rf3 {[%emt 0:00:29]} Ng7 {[%emt 0:02:56]} 24. Qh3 {[%emt 0:00:01]} Qd7 {[%emt 0:02:56]} 25. Ng3 {[%emt 0:00:20]} Qe7 {[%emt 0:01:19]} 26. Nf5 {[%emt 0:00:06]} Bxf5 {[%emt 0:00:56]} 27. exf5 {[%emt 0:00:01]} Nf6 {[%emt 0:00:26]} 28. Qh6 {[%emt 0:00:30]} g4 {[%emt 0:00:09]} 29. Rff1 {[%emt 0:00:03]} Rfc8 {[%emt 0:00:57]} 30. Ra6 {[%emt 0:00:16]} Nge8 {[%emt 0:01:04]} 31. b6 {[%emt 0:00:13]} Qf8 {[%emt 0:00:31]} 32. Qxf8+ {[%emt 0:00:15]} Kxf8 {[%emt 0:00:01]} 33. Nb5 {[%emt 0:00:18]} Nd7 {[%emt 0:00:06]} 34. Na7 {[%emt 0:00:03]} Nxb6 {[%emt 0:00:43]} 35. Nxc8 {[%emt 0:00:17]} Nxc8 {[%emt 0:00:04]} 36. Rf2 {[%emt 0:00:14]} Nf6 {[%emt 0:00:07]} 37. Ra4 {[%emt 0:00:11]} Ke7 {[%emt 0:00:07]} 38. Ra2 {[%emt 0:00:14]} Rb4 {[%emt 0:00:05]} 39. Ra3 {[%emt 0:00:09]} Rd4 {[%emt 0:00:07]} 40. Rb3 Nxd5 {[%emt 0:00:26]} 41. Bxd5 {[%emt 0:00:23]} Rxd5 {[%emt 0:00:02]} 42. f6+ {[%emt 0:00:09]} Kd7 {[%emt 0:00:39]} 43. Rb7+ {[%emt 0:00:03]} Ke6 {[%emt 0:00:22]} 44. Rc7 {[%emt 0:00:19]} Rd4 {[%emt 0:00:11]} 45. Rxc8 {[%emt 0:00:04]} Rf4 {[%emt 0:00:30]} 46. Rxf4 {[%emt 0:00:28]} exf4 {[%emt 0:00:01]} 47. Rg8 {[%emt 0:00:08]} Kf5 {[%emt 0:00:08]} 48. Rg7 {[%emt 0:00:02]} Kxf6 {[%emt 0:00:02]} 49. Rxg4 Kf5 50. Rg8 {[%emt 0:00:29]} d5 {[%emt 0:00:05]} 51. Kf2 {[%emt 0:00:11]} Ke4 {[%emt 0:00:01]} 52. h4 {[%emt 0:00:17]} Kd3 {[%emt 0:00:06]} 53. h5 {[%emt 0:00:05]} d4 {[%emt 0:00:02]} 54. h6 {[%emt 0:00:02]} Kc2 {[%emt 0:00:01]} 1-0